[Event "Swedish Chess Championship 2021: Mastarklassen-Elit"]
[Site "Scandic Helsingborg Nord, Florettgatan 41, Helsingborg, Sweden"]
[Date "2021.07.04"]
[Round "2.5"]
[White "Sorensen, Hampus"]
[Black "Thorn, Eric"]
[Result "1/2-1/2"]
[TimeControl "90 minutes for 40 moves + 30 minutes for the rest of the game + 30 seconds per move from move one."]
[WhiteTitle "FM"]
[BlackTitle "FM"]
[WhiteFideId "8703884"]
[BlackFideId "1710729"]
[WhiteElo "2392"]
[BlackElo "2271"]

1. d4 {[%clk 01:30:57]} {[%emt 00:00:02]} Nf6 {[%clk 01:28:27]} {[%emt
00:02:21]} 2. c4 {[%clk 01:31:21]} {[%emt 00:00:19]} e6 {[%clk 01:28:51]}
{[%emt 00:00:06]} 3. Nf3 {[%clk 01:31:41]} {[%emt 00:00:10]} d5 {[%clk
01:29:15]} {[%emt 00:00:06]} 4. Bg5 {[%clk 01:31:48]} {[%emt 00:00:22]} dxc4
{[%clk 01:29:39]} {[%emt 00:00:06]} 5. e4 {[%clk 01:31:47]} {[%emt 00:00:30]}
b5 {[%clk 01:28:57]} {[%emt 00:01:13]} 6. a4 {[%clk 01:31:52]} {[%emt
00:00:25]} c6 {[%clk 01:29:17]} {[%emt 00:00:10]} 7. Nc3 {[%clk 01:31:41]}
{[%emt 00:00:41]} b4 {[%clk 01:29:41]} {[%emt 00:00:06]} 8. Nb1 {[%clk
01:29:05]} {[%emt 00:03:06]} Ba6 {[%clk 01:30:06]} {[%emt 00:00:05]} 9. Qc1
{[%clk 01:27:09]} {[%emt 00:02:26]} c5 {[%clk 01:26:47]} {[%emt 00:03:50]} 10.
Bxc4 {[%clk 01:22:45]} {[%emt 00:04:55]} Bxc4 {[%clk 01:24:23]} {[%emt
00:02:53]} 11. Qxc4 {[%clk 01:23:03]} {[%emt 00:00:11]} cxd4 {[%clk 01:24:13]}
{[%emt 00:00:40]} 12. Nbd2 {[%clk 01:09:51]} {[%emt 00:13:41]} Nbd7 {[%clk
01:21:26]} {[%emt 00:03:17]} 13. e5 {[%clk 01:03:34]} {[%emt 00:06:47]} h6
{[%clk 01:13:56]} {[%emt 00:08:00]} 14. Bh4 {[%clk 01:03:50]} {[%emt 00:00:13]}
g5 {[%clk 01:10:49]} {[%emt 00:03:37]} 15. exf6 {[%clk 01:03:59]} {[%emt
00:00:22]} gxh4 {[%clk 01:10:54]} {[%emt 00:00:25]} 16. Ne4 {[%clk 01:04:11]}
{[%emt 00:00:17]} Rc8 {[%clk 01:03:11]} {[%emt 00:08:14]} 17. Qxd4 {[%clk
00:53:01]} {[%emt 00:11:41]} Nc5 {[%clk 01:02:54]} {[%emt 00:00:47]} 18. Qxd8+
{[%clk 00:53:05]} {[%emt 00:00:27]} Rxd8 {[%clk 01:02:34]} {[%emt 00:00:49]} 19.
Nxc5 {[%clk 00:53:20]} {[%emt 00:00:14]} Bxc5 {[%clk 01:02:57]} {[%emt
00:00:06]} 20. Rc1 {[%clk 00:45:40]} {[%emt 00:08:11]} Rd5 {[%clk 00:37:39]}
{[%emt 00:25:48]} 21. g4 {[%clk 00:32:03]} {[%emt 00:14:06]} Rg8 {[%clk
00:29:09]} {[%emt 00:09:01]} 22. Rc4 {[%clk 00:31:40]} {[%emt 00:00:53]} Rg6
{[%clk 00:26:52]} {[%emt 00:02:47]} 23. Ke2 {[%clk 00:31:31]} {[%emt 00:00:39]}
Rxf6 {[%clk 00:23:35]} {[%emt 00:03:47]} 24. Rhc1 {[%clk 00:31:44]} {[%emt
00:00:17]} Bd6 {[%clk 00:19:26]} {[%emt 00:04:38]} 25. h3 {[%clk 00:28:39]}
{[%emt 00:03:34]} Rf4 {[%clk 00:14:04]} {[%emt 00:05:53]} 26. Rxf4 {[%clk
00:25:26]} {[%emt 00:03:43]} Bxf4 {[%clk 00:14:29]} {[%emt 00:00:05]} 27. Rc4
{[%clk 00:22:06]} {[%emt 00:03:50]} Bd6 {[%clk 00:14:03]} {[%emt 00:00:56]} 28.
Nxh4 {[%clk 00:10:12]} {[%emt 00:12:23]} Re5+ {[%clk 00:11:37]} {[%emt
00:02:56]} 29. Kd2 {[%clk 00:09:00]} {[%emt 00:01:42]} Rd5+ {[%clk 00:09:24]}
{[%emt 00:02:44]} 30. Kc2 {[%clk 00:08:59]} {[%emt 00:00:30]} Re5 {[%clk
00:07:38]} {[%emt 00:02:16]} 31. Kd1 {[%clk 00:06:00]} {[%emt 00:03:28]} Rd5+
{[%clk 00:06:56]} {[%emt 00:01:12]} 32. Ke2 {[%clk 00:06:00]} {[%emt 00:00:30]}
Re5+ {[%clk 00:07:07]} {[%emt 00:00:19]} 33. Kf1 {[%clk 00:06:08]} {[%emt
00:00:22]} Rd5 {[%clk 00:06:29]} {[%emt 00:01:09]} 34. Ke2 {[%clk 00:04:48]}
{[%emt 00:01:49]} 1/2-1/2

[Event "Swedish Chess Championship 2021: Mastarklassen-Elit"]
[Site "Scandic Helsingborg Nord, Florettgatan 41, Helsingborg, Sweden"]
[Date "2021.07.07"]
[Round "5.1"]
[White "Jogstad, Martin"]
[Black "Thorn, Eric"]
[Result "1/2-1/2"]
[TimeControl "90 minutes for 40 moves + 30 minutes for the rest of the game + 30 seconds per move from move one."]
[WhiteTitle "FM"]
[BlackTitle "FM"]
[WhiteFideId "1715364"]
[BlackFideId "1710729"]
[WhiteElo "2301"]
[BlackElo "2271"]

1. d4 {[%clk 01:30:54]} {[%emt 00:00:04]} d6 {[%clk 01:30:39]} {[%emt
00:00:22]} 2. Nf3 {[%clk 01:30:55]} {[%emt 00:00:28]} Nf6 {[%clk 01:30:01]}
{[%emt 00:01:09]} 3. g3 {[%clk 01:30:26]} {[%emt 00:00:59]} g6 {[%clk
01:30:24]} {[%emt 00:00:07]} 4. Bg2 {[%clk 01:30:48]} {[%emt 00:00:08]} Bg7
{[%clk 01:30:48]} {[%emt 00:00:06]} 5. O-O {[%clk 01:30:41]} {[%emt 00:00:37]}
O-O {[%clk 01:31:13]} {[%emt 00:00:05]} 6. b3 {[%clk 01:31:03]} {[%emt
00:00:07]} e5 {[%clk 01:29:34]} {[%emt 00:02:09]} 7. dxe5 {[%clk 01:29:58]}
{[%emt 00:01:34]} Ng4 {[%clk 01:29:27]} {[%emt 00:00:37]} 8. Bb2 {[%clk
01:29:56]} {[%emt 00:00:32]} Nc6 {[%clk 01:28:53]} {[%emt 00:01:05]} 9. Qc1
{[%clk 01:29:37]} {[%emt 00:00:49]} Ngxe5 {[%clk 01:27:59]} {[%emt 00:01:24]}
10. Nxe5 {[%clk 01:26:01]} {[%emt 00:04:05]} Nxe5 {[%clk 01:24:02]} {[%emt
00:04:27]} 11. c4 {[%clk 01:25:50]} {[%emt 00:00:42]} Qe7 {[%clk 01:13:19]}
{[%emt 00:11:13]} 12. Nc3 {[%clk 01:25:20]} {[%emt 00:01:00]} c6 {[%clk
01:06:19]} {[%emt 00:07:31]} 13. Rd1 {[%clk 01:22:49]} {[%emt 00:03:00]} Be6
{[%clk 00:58:55]} {[%emt 00:07:54]} 14. f4 {[%clk 01:09:14]} {[%emt 00:14:06]}
Ng4 {[%clk 00:55:14]} {[%emt 00:04:11]} 15. h3 {[%clk 01:09:09]} {[%emt
00:00:34]} Nf6 {[%clk 00:53:40]} {[%emt 00:02:03]} 16. e4 {[%clk 01:07:40]}
{[%emt 00:01:59]} Rfe8 {[%clk 00:43:17]} {[%emt 00:10:53]} 17. Qd2 {[%clk
01:05:24]} {[%emt 00:02:47]} Rad8 {[%clk 00:41:45]} {[%emt 00:02:02]} 18. Qf2
{[%clk 01:01:20]} {[%emt 00:04:33]} Qc7 {[%clk 00:32:25]} {[%emt 00:09:50]} 19.
Rd2 {[%clk 00:51:16]} {[%emt 00:10:34]} Qa5 {[%clk 00:31:14]} {[%emt 00:01:41]}
20. Rad1 {[%clk 00:44:11]} {[%emt 00:07:36]} Nh5 {[%clk 00:08:52]} {[%emt
00:22:52]} 21. Ne2 {[%clk 00:25:05]} {[%emt 00:19:35]} Bxb2 {[%clk 00:08:44]}
{[%emt 00:00:37]} 22. Rxb2 {[%clk 00:24:57]} {[%emt 00:00:38]} d5 {[%clk
00:06:21]} {[%emt 00:02:53]} 23. f5 {[%clk 00:18:05]} {[%emt 00:07:22]} Bc8
{[%clk 00:04:43]} {[%emt 00:02:08]} 24. exd5 {[%clk 00:17:38]} {[%emt
00:00:57]} gxf5 {[%clk 00:02:45]} {[%emt 00:02:27]} 25. Nf4 {[%clk 00:12:21]}
{[%emt 00:05:46]} Nxf4 {[%clk 00:02:00]} {[%emt 00:01:16]} 26. Qxf4 {[%clk
00:12:15]} {[%emt 00:00:36]} Qc5+ {[%clk 00:01:04]} {[%emt 00:01:26]} 27. Kh2
{[%clk 00:12:01]} {[%emt 00:00:44]} Qd6 {[%clk 00:00:49]} {[%emt 00:00:45]} 28.
Rf1 {[%clk 00:03:33]} {[%emt 00:08:57]} Qxf4 {[%clk 00:00:50]} {[%emt
00:00:31]} 29. Rxf4 {[%clk 00:04:01]} {[%emt 00:00:02]} c5 {[%clk 00:00:39]}
{[%emt 00:00:40]} 30. Rbf2 {[%clk 00:04:29]} {[%emt 00:00:02]} Re7 {[%clk
00:00:37]} {[%emt 00:00:33]} 31. h4 {[%clk 00:04:31]} {[%emt 00:00:28]} Rd6
{[%clk 00:00:35]} {[%emt 00:00:32]} 32. Bh3 {[%clk 00:04:47]} {[%emt 00:00:14]}
Rf6 {[%clk 00:00:34]} {[%emt 00:00:31]} 33. g4 {[%clk 00:04:57]} {[%emt
00:00:20]} h6 {[%clk 00:00:35]} {[%emt 00:00:28]} 34. gxf5 {[%clk 00:04:46]}
{[%emt 00:00:41]} Kf8 {[%clk 00:00:34]} {[%emt 00:00:31]} 35. Rg2 {[%clk
00:02:56]} {[%emt 00:02:21]} Re3 {[%clk 00:00:51]} {[%emt 00:00:13]} 36. Rgf2
{[%clk 00:01:46]} {[%emt 00:01:41]} Ke7 {[%clk 00:00:53]} {[%emt 00:00:27]} 37.
R4f3 {[%clk 00:01:39]} {[%emt 00:00:37]} Re4 {[%clk 00:00:58]} {[%emt
00:00:26]} 38. Rf4 {[%clk 00:01:12]} {[%emt 00:00:57]} Re3 {[%clk 00:01:19]}
{[%emt 00:00:09]} 39. Rg2 {[%clk 00:00:56]} {[%emt 00:00:46]} Bd7 {[%clk
00:00:50]} {[%emt 00:00:59]} 40. Rff2 {[%clk 00:00:53]} {[%emt 00:00:33]} Kd6
{[%clk 00:00:51]} {[%emt 00:00:29]} 41. Re2 {[%clk 00:25:01]} {[%emt 00:06:22]}
Rf3 {[%clk 00:26:08]} {[%emt 00:05:12]} 42. Rgf2 {[%clk 00:24:34]} {[%emt
00:00:57]} Rd3 {[%clk 00:25:20]} {[%emt 00:01:17]} 43. Rf4 {[%clk 00:16:16]}
{[%emt 00:08:49]} b5 {[%clk 00:21:55]} {[%emt 00:03:56]} 44. Bf1 {[%clk
00:15:03]} {[%emt 00:01:43]} Rd4 {[%clk 00:11:29]} {[%emt 00:10:56]} 45. Ref2
{[%clk 00:12:22]} {[%emt 00:03:10]} Rxf4 {[%clk 00:07:15]} {[%emt 00:04:44]} 46.
Rxf4 {[%clk 00:12:51]} {[%emt 00:00:02]} bxc4 {[%clk 00:03:57]} {[%emt
00:03:48]} 47. bxc4 {[%clk 00:12:56]} {[%emt 00:00:24]} Rxf5 {[%clk 00:03:10]}
{[%emt 00:01:17]} 48. Kg3 {[%clk 00:12:30]} {[%emt 00:00:56]} Ke5 {[%clk
00:03:19]} {[%emt 00:00:21]} 49. Rxf5+ {[%clk 00:12:52]} {[%emt 00:00:08]} Bxf5
{[%clk 00:03:41]} {[%emt 00:00:07]} 50. a3 {[%clk 00:11:53]} {[%emt 00:01:30]}
a5 {[%clk 00:02:49]} {[%emt 00:01:22]} 51. Be2 {[%clk 00:11:28]} {[%emt
00:00:55]} Bd7 {[%clk 00:02:24]} {[%emt 00:00:55]} 52. Bh5 {[%clk 00:08:08]}
{[%emt 00:03:50]} f5 {[%clk 00:01:53]} {[%emt 00:01:01]} 53. Kf3 {[%clk
00:07:30]} {[%emt 00:01:08]} Ba4 {[%clk 00:00:43]} {[%emt 00:01:40]} 54. Ke3
{[%clk 00:06:59]} {[%emt 00:01:01]} Bc2 {[%clk 00:01:03]} {[%emt 00:00:10]} 55.
Be8 {[%clk 00:05:24]} {[%emt 00:02:04]} f4+ {[%clk 00:01:04]} {[%emt 00:00:30]}
56. Kf3 {[%clk 00:05:22]} {[%emt 00:00:32]} Bd1+ {[%clk 00:00:46]} {[%emt
00:00:47]} 57. Kf2 {[%clk 00:05:35]} {[%emt 00:00:17]} Bg4 {[%clk 00:00:49]}
{[%emt 00:00:28]} 58. Ba4 {[%clk 00:05:35]} {[%emt 00:00:31]} Bh5 {[%clk
00:00:39]} {[%emt 00:00:40]} 59. Bc2 {[%clk 00:03:34]} {[%emt 00:02:32]} Be8
{[%clk 00:00:49]} {[%emt 00:00:20]} 60. Bd1 {[%clk 00:03:44]} {[%emt 00:00:19]}
Kd4 {[%clk 00:01:00]} {[%emt 00:00:19]} 61. Be2 {[%clk 00:03:55]} {[%emt
00:00:20]} Kc3 {[%clk 00:01:04]} {[%emt 00:00:25]} 62. Kf3 {[%clk 00:03:48]}
{[%emt 00:00:37]} Kb3 {[%clk 00:01:13]} {[%emt 00:00:22]} 63. Kxf4 {[%clk
00:03:42]} {[%emt 00:00:36]} Kxa3 {[%clk 00:01:37]} {[%emt 00:00:05]} 64. d6
{[%clk 00:02:58]} {[%emt 00:01:13]} Kb4 {[%clk 00:01:57]} {[%emt 00:00:10]} 65.
Bh5 {[%clk 00:02:38]} {[%emt 00:00:50]} Bc6 {[%clk 00:00:44]} {[%emt 00:01:43]}
66. Bf3 {[%clk 00:02:56]} {[%emt 00:00:12]} Be8 {[%clk 00:00:41]} {[%emt
00:00:33]} 67. Bh5 {[%clk 00:02:49]} {[%emt 00:00:37]} Bd7 {[%clk 00:00:38]}
{[%emt 00:00:32]} 68. Bg4 {[%clk 00:03:00]} {[%emt 00:00:17]} Bc6 {[%clk
00:00:37]} {[%emt 00:00:33]} 69. d7 {[%clk 00:01:10]} {[%emt 00:02:19]} Bxd7
{[%clk 00:01:03]} {[%emt 00:00:04]} 70. Bxd7 {[%clk 00:01:39]} {[%emt
00:00:01]} a4 {[%clk 00:01:20]} {[%emt 00:00:13]} 71. Bxa4 {[%clk 00:01:31]}
{[%emt 00:00:38]} Kxa4 {[%clk 00:01:48]} {[%emt 00:00:02]} 72. h5 {[%clk
00:01:01]} {[%emt 00:00:59]} Kb4 {[%clk 00:02:14]} {[%emt 00:00:05]} 73. Kf5
{[%clk 00:01:28]} {[%emt 00:00:04]} Kxc4 {[%clk 00:02:40]} {[%emt 00:00:04]} 74.
Kg6 {[%clk 00:01:55]} {[%emt 00:00:02]} Kd5 {[%clk 00:02:28]} {[%emt 00:00:41]}
75. Kxh6 {[%clk 00:02:21]} {[%emt 00:00:04]} c4 {[%clk 00:02:52]} {[%emt
00:00:06]} 76. Kg7 {[%clk 00:02:44]} {[%emt 00:00:07]} c3 {[%clk 00:03:16]}
{[%emt 00:00:06]} 77. h6 {[%clk 00:03:12]} {[%emt 00:00:03]} c2 {[%clk
00:03:02]} {[%emt 00:00:44]} 78. h7 {[%clk 00:03:38]} {[%emt 00:00:04]} c1=B
{[%clk 00:03:24]} {[%emt 00:00:08]} 79. h8=B {[%clk 00:03:40]} {[%emt
00:00:28]} Bb2+ {[%clk 00:03:49]} {[%emt 00:00:06]} 80. Kg8 {[%clk 00:04:06]}
{[%emt 00:00:04]} Bxh8 {[%emt 00:00:06]} 1/2-1/2

[Event "Swedish Chess Championship 2021: Mastarklassen-Elit"]
[Site "Scandic Helsingborg Nord, Florettgatan 41, Helsingborg, Sweden"]
[Date "2021.07.07"]
[Round "5.2"]
[White "Johansson, Thomas"]
[Black "Zadruzny, Nicolaj"]
[Result "0-1"]
[TimeControl "90 minutes for 40 moves + 30 minutes for the rest of the game + 30 seconds per move from move one."]
[BlackTitle "FM"]
[WhiteFideId "1702998"]
[BlackFideId "1709550"]
[WhiteElo "2254"]
[BlackElo "2333"]

1. c4 {[%clk 01:30:50]} {[%emt 00:00:09]} e6 {[%clk 01:30:40]} {[%emt
00:00:20]} 2. Nc3 {[%clk 01:31:03]} {[%emt 00:00:16]} d5 {[%clk 01:30:59]}
{[%emt 00:00:11]} 3. e3 {[%clk 01:30:50]} {[%emt 00:00:44]} Nf6 {[%clk
01:31:05]} {[%emt 00:00:24]} 4. Nf3 {[%clk 01:30:54]} {[%emt 00:00:25]} b6
{[%clk 01:30:32]} {[%emt 00:01:04]} 5. b3 {[%clk 01:30:47]} {[%emt 00:00:37]}
Bb7 {[%clk 01:29:40]} {[%emt 00:01:22]} 6. Bb2 {[%clk 01:30:46]} {[%emt
00:00:31]} Bd6 {[%clk 01:25:06]} {[%emt 00:05:04]} 7. cxd5 {[%clk 01:26:08]}
{[%emt 00:05:09]} exd5 {[%clk 01:24:39]} {[%emt 00:00:57]} 8. Bb5+ {[%clk
01:25:34]} {[%emt 00:01:04]} c6 {[%clk 01:15:15]} {[%emt 00:09:53]} 9. Be2
{[%clk 01:25:38]} {[%emt 00:00:25]} O-O {[%clk 01:15:07]} {[%emt 00:00:38]} 10.
Qc2 {[%clk 01:22:11]} {[%emt 00:03:57]} Re8 {[%clk 01:12:16]} {[%emt 00:03:21]}
11. Rd1 {[%clk 01:18:55]} {[%emt 00:03:45]} Nbd7 {[%clk 01:10:00]} {[%emt
00:02:48]} 12. O-O {[%clk 01:12:22]} {[%emt 00:07:03]} Rc8 {[%clk 01:06:56]}
{[%emt 00:03:34]} 13. Bd3 {[%clk 00:59:31]} {[%emt 00:13:20]} Nc5 {[%clk
00:53:13]} {[%emt 00:14:13]} 14. Bf5 {[%clk 00:58:50]} {[%emt 00:01:10]} Rc7
{[%clk 00:52:19]} {[%emt 00:01:25]} 15. Ne2 {[%clk 00:57:48]} {[%emt 00:01:32]}
g6 {[%clk 00:49:42]} {[%emt 00:03:07]} 16. Bh3 {[%clk 00:53:29]} {[%emt
00:04:48]} Nfe4 {[%clk 00:35:41]} {[%emt 00:14:27]} 17. d3 {[%clk 00:50:56]}
{[%emt 00:03:07]} Ng5 {[%clk 00:31:36]} {[%emt 00:04:35]} 18. Nxg5 {[%clk
00:47:03]} {[%emt 00:04:23]} Qxg5 {[%clk 00:32:02]} {[%emt 00:00:05]} 19. f4
{[%clk 00:37:32]} {[%emt 00:10:00]} Qe7 {[%clk 00:32:27]} {[%emt 00:00:05]} 20.
Rf3 {[%clk 00:37:15]} {[%emt 00:00:47]} f6 {[%clk 00:30:58]} {[%emt 00:02:00]}
21. Qc3 {[%clk 00:33:21]} {[%emt 00:04:24]} Rf8 {[%clk 00:24:57]} {[%emt
00:06:31]} 22. Nd4 {[%clk 00:32:13]} {[%emt 00:01:37]} Kf7 {[%clk 00:18:33]}
{[%emt 00:06:55]} 23. Qc2 {[%clk 00:28:50]} {[%emt 00:03:53]} f5 {[%clk
00:18:32]} {[%emt 00:00:31]} 24. Rg3 {[%clk 00:27:01]} {[%emt 00:02:19]} Ke8
{[%clk 00:18:28]} {[%emt 00:00:35]} 25. Rf3 {[%clk 00:24:38]} {[%emt 00:02:52]}
Bc8 {[%clk 00:10:19]} {[%emt 00:08:39]} 26. Re1 {[%clk 00:20:14]} {[%emt
00:04:53]} Ne6 {[%clk 00:06:06]} {[%emt 00:04:45]} 27. Qf2 {[%clk 00:17:14]}
{[%emt 00:03:30]} Kd8 {[%clk 00:03:07]} {[%emt 00:03:30]} 28. Nc2 {[%clk
00:16:49]} {[%emt 00:00:54]} Nc5 {[%clk 00:01:32]} {[%emt 00:02:05]} 29. Qd2
{[%clk 00:16:01]} {[%emt 00:01:18]} Ba6 {[%clk 00:01:07]} {[%emt 00:00:56]} 30.
e4 {[%clk 00:06:34]} {[%emt 00:09:56]} fxe4 {[%clk 00:01:21]} {[%emt 00:00:16]}
31. dxe4 {[%clk 00:05:29]} {[%emt 00:01:34]} Nxe4 {[%clk 00:01:45]} {[%emt
00:00:06]} 32. Qd1 {[%clk 00:05:11]} {[%emt 00:00:49]} Bc8 {[%clk 00:01:24]}
{[%emt 00:00:51]} 33. Be5 {[%clk 00:04:26]} {[%emt 00:01:15]} Bxe5 {[%clk
00:01:10]} {[%emt 00:00:45]} 34. Rxe4 {[%clk 00:04:42]} {[%emt 00:00:14]} Qc5+
{[%clk 00:00:58]} {[%emt 00:00:42]} 35. Kh1 {[%clk 00:04:31]} {[%emt 00:00:40]}
Bd6 {[%clk 00:00:38]} {[%emt 00:00:50]} 36. b4 {[%clk 00:04:10]} {[%emt
00:00:51]} Qb5 {[%clk 00:00:46]} {[%emt 00:00:22]} 37. Nd4 {[%clk 00:04:22]}
{[%emt 00:00:17]} Qa6 {[%clk 00:01:04]} {[%emt 00:00:13]} 38. Bxc8 {[%clk
00:04:28]} {[%emt 00:00:23]} Kxc8 {[%clk 00:01:10]} {[%emt 00:00:24]} 39. Re6
{[%clk 00:04:27]} {[%emt 00:00:31]} Rd8 {[%clk 00:00:49]} {[%emt 00:00:51]} 40.
Ree3 {[%clk 00:03:29]} {[%emt 00:01:27]} Rg8 {[%clk 00:00:32]} {[%emt
00:00:48]} 41. Re6 {[%clk 00:20:55]} {[%emt 00:13:04]} Rd8 {[%clk 00:29:01]}
{[%emt 00:02:00]} 42. a4 {[%clk 00:19:36]} {[%emt 00:01:50]} Qc4 {[%clk
00:27:45]} {[%emt 00:01:47]} 43. Ree3 {[%clk 00:07:34]} {[%emt 00:12:32]} Bxb4
{[%clk 00:27:38]} {[%emt 00:00:38]} 44. Ne6 {[%clk 00:07:49]} {[%emt 00:00:15]}
d4 {[%clk 00:26:15]} {[%emt 00:01:52]} 45. Re5 {[%clk 00:07:12]} {[%emt
00:01:07]} Bd6 {[%clk 00:22:53]} {[%emt 00:03:51]} 46. Re1 {[%clk 00:06:24]}
{[%emt 00:01:18]} Bb4 {[%clk 00:22:55]} {[%emt 00:00:28]} 47. Re5 {[%clk
00:06:15]} {[%emt 00:00:39]} Rcd7 {[%clk 00:20:54]} {[%emt 00:02:32]} 48. Nxd8
{[%clk 00:06:22]} {[%emt 00:00:22]} Kxd8 {[%clk 00:19:35]} {[%emt 00:01:50]} 49.
Rd3 {[%clk 00:06:14]} {[%emt 00:00:38]} Kc7 {[%clk 00:16:45]} {[%emt 00:03:20]}
50. h3 {[%clk 00:06:21]} {[%emt 00:00:23]} c5 {[%clk 00:07:30]} {[%emt
00:09:45]} 51. Qf3 {[%clk 00:06:11]} {[%emt 00:00:39]} Qa6 {[%clk 00:07:44]}
{[%emt 00:00:17]} 52. f5 {[%clk 00:05:01]} {[%emt 00:01:40]} c4 {[%clk
00:07:22]} {[%emt 00:00:52]} 53. Rd1 {[%clk 00:05:12]} {[%emt 00:00:18]} Qxa4
{[%clk 00:06:20]} {[%emt 00:01:32]} 54. f6 {[%clk 00:05:11]} {[%emt 00:00:31]}
Qc6 {[%clk 00:03:13]} {[%emt 00:03:37]} 55. Re4 {[%clk 00:04:36]} {[%emt
00:01:04]} Rf7 {[%clk 00:01:06]} {[%emt 00:02:37]} 56. Rdxd4 {[%clk 00:04:40]}
{[%emt 00:00:27]} Rxf6 {[%clk 00:00:59]} {[%emt 00:00:36]} 57. Qe2 {[%clk
00:03:48]} {[%emt 00:01:21]} b5 {[%clk 00:00:54]} {[%emt 00:00:36]} 58. Re8
{[%clk 00:03:55]} {[%emt 00:00:23]} Bd6 {[%clk 00:00:40]} {[%emt 00:00:44]} 59.
Rd1 {[%clk 00:03:35]} {[%emt 00:00:50]} Rf7 {[%clk 00:00:32]} {[%emt 00:00:38]}
60. Qe3 {[%clk 00:03:39]} {[%emt 00:00:26]} Kb7 {[%clk 00:00:31]} {[%emt
00:00:31]} 61. Qe6 {[%clk 00:02:21]} {[%emt 00:01:47]} Rd7 {[%clk 00:00:57]}
{[%emt 00:00:05]} 62. Rd5 {[%clk 00:02:27]} {[%emt 00:00:25]} c3 {[%clk
00:01:04]} {[%emt 00:00:22]} 63. Rd1 {[%clk 00:02:32]} {[%emt 00:00:25]} c2
{[%clk 00:01:10]} {[%emt 00:00:24]} 64. Rc1 {[%clk 00:02:29]} {[%emt 00:00:33]}
Rc7 {[%clk 00:01:25]} {[%emt 00:00:15]} 65. Qg8 {[%clk 00:02:14]} {[%emt
00:00:44]} Qc4 {[%clk 00:01:20]} {[%emt 00:00:35]} 66. Rb8+ {[%clk 00:02:19]}
{[%emt 00:00:26]} Ka6 {[%clk 00:01:40]} {[%emt 00:00:08]} 67. Ra1+ {[%clk
00:02:34]} {[%emt 00:00:17]} Qa4 {[%clk 00:02:01]} {[%emt 00:00:09]} 68. Rb6+
{[%clk 00:00:39]} {[%emt 00:02:25]} Kxb6 {[%clk 00:02:22]} {[%emt 00:00:10]} 69.
Qb8+ {[%clk 00:01:01]} {[%emt 00:00:08]} Ka6 {[%clk 00:02:35]} {[%emt
00:00:16]} 70. Rxa4+ {[%clk 00:00:32]} {[%emt 00:00:59]} bxa4 {[%clk 00:03:00]}
{[%emt 00:00:05]} 71. Qb2 {[%clk 00:00:36]} {[%emt 00:00:26]} c1=Q+ {[%clk
00:03:19]} {[%emt 00:00:10]} 72. Qxc1 {[%clk 00:01:02]} {[%emt 00:00:05]} Rxc1#
{[%emt 00:00:07]} 0-1